[Event "5th Sharjah Masters 2022"]
[Site "Sharjah"]
[Date "2022.05.27"]
[Round "7.24"]
[White "Sankalp Gupta"]
[Black "Hovhannisyan, Robert"]
[Result "1-0"]
[ECO "C65"]
[WhiteElo "2505"]
[BlackElo "2607"]
[Annotator "TA"]
[PlyCount "78"]
[EventDate "2022.05.21"]
[EventType "swiss"]
[EventCountry "UAE"]
[SourceTitle "playchess.com"]
[Source "ChessBase"]
[SourceQuality "1"]
[TimeControl "5400+30"]

{[%evp 9,78,16,19,11,18,10,21,21,20,13,20,20,18,25,24,19,25,20,28,24,25,20,25,30,34,37,38,38,40,30,36,18,37,20,37,26,41,21,35,28,38,39,49,31,41,59,52,54,98,82,89,89,96,96,96,96,97,97,352,337,488,458,411,323,323,323,314,300,511,311,386]} 1. e4 {[%emt 0:00:02]} e5 {[%emt 0:00:06]} 2. Nf3 {[%emt 0:00:07]} Nc6 {[%emt 0:00:06]} 3. Bb5 {[%emt 0:00:05]} Nf6 {[%emt 0:00:10]} 4. d3 {[%emt 0:00:12]} Bc5 {[%emt 0:00:07]} 5. Bxc6 {[%emt 0:00:09]} dxc6 {[%emt 0:00:07]} 6. Nbd2 {[%emt 0:00:04] C65: Ruy Lopez: Berlin Defence (3...Nf6), unusual lines and 4 0-0 Bc5.} Bg4 {[%emt 0:01:32]} 7. h3 {[%emt 0:01:17]} Bh5 {[%emt 0:00:07]} 8. Nb3 {[%emt 0:00:06] The position is equal.} Bd6 {[%emt 0:00:56]} 9. g4 {[%emt 0:00:20]} Bg6 {[%emt 0:00:06]} 10. Na5 {[%emt 0:00:05]} Bb4+ {[%emt 0:02:54]} 11. Bd2 {[%emt 0:00:02]} Bxa5 {[%emt 0:00:07]} 12. Bxa5 {[%emt 0:00:06]} Nd7 {[%emt 0:00:42]} 13. Qe2 {[%emt 0:01:54]} Qe7 {[%emt 0:03:02]} 14. Bc3 {[%emt 0:03:18]} O-O-O {[%emt 0:01:54]} 15. O-O-O {[%emt 0:02:56]} f6 {[%emt 0:03:29]} 16. Nh4 {[%emt 0:01:27] [#]} Nf8 $146 {[%emt 0:02:46]} ({Predecessor:} 16... Nc5 17. Nf5 Qf7 18. Kb1 Ne6 19. Bd2 {½-½ (19) Steinke,R (2351)-Nemec,Z (2370) LSS email 2015}) 17. Qe3 {[%emt 0:08:09]} b6 {[%emt 0:13:00]} 18. f4 {[%emt 0:02:47]} exf4 {[%emt 0:02:25]} 19. Qxf4 {[%emt 0:00:15]} Ne6 {[%emt 0:00:33]} 20. Qe3 {[%emt 0:05:06]} Rhe8 {[%emt 0:04:36]} 21. Rhg1 {[%emt 0:01:09]} Kb7 {[%emt 0:02:14]} 22. Kb1 {[%emt 0:04:03]} a5 {[%emt 0:06:34]} 23. Rdf1 {[%emt 0:00:28]} a4 {[%emt 0:02:18]} 24. Nf5 {[%emt 0:01:10]} Qd7 {[%emt 0:01:05]} 25. h4 {[%emt 0:00:23]} h6 {[%emt 0:16:05] [#]} 26. Nxg7 $1 {[%emt 0:02:37]} Qxg7 {[%emt 0:02:00]} (26... Nxg7 $2 27. Bxf6 (27. Rxf6 Bxe4 28. dxe4 Rxe4 $15) (27. Qxh6 Bf7 $16) 27... Bf7 28. a3 $16 (28. Bxg7 Bxa2+ 29. Kxa2 Qxg7 $18) (28. Qxh6 Re6 $14) (28. Bxd8 Rxd8 29. Qxh6 a3 $16)) 27. Bxf6 {[%emt 0:01:47]} Qh7 {[%emt 0:01:33]} 28. Bxd8 {[%emt 0:00:07]} Nxd8 {[%emt 0:00:17]} 29. Rf6 $36 {[%emt 0:01:51][%mdl 2048] Threatens to win with h5. White is really pushing.} Qg7 {[%emt 0:04:13]} 30. Rgf1 {[%emt 0:02:19]} Bf7 {[%emt 0:00:00]} 31. g5 {[%emt 0:12:33]} hxg5 {[%emt 0:10:05]} 32. Qxg5 {[%emt 0:01:48]} Qh8 {[%emt 0:00:31][%cal Oa4a3]} 33. a3 {[%emt 0:03:24] White is more active.} Re7 {[%emt 0:05:12][%mdl 8192] [#] Black cannot hold the game after this.} (33... Rg8 $16 34. Qh6 c5) 34. Rd6 $1 $18 {[%emt 0:04:29]} cxd6 {[%emt 0:04:46]} (34... Re8 $142) 35. Qxe7+ {[%emt 0:00:11]} Kc8 {[%emt 0:00:11]} 36. Qxd6 {[%emt 0:03:39]} Qh5 {[%emt 0:00:40]} 37. Qf6 {[%emt 0:01:57]} Be6 {[%emt 0:02:11]} 38. Rg1 {[%emt 0:01:53]} c5 $2 {[%emt 0:03:18]} (38... Qe2 39. Qg5 Bf7 40. Qg4+ Qxg4 41. Rxg4 Ne6) 39. Qe7 {[%emt 0:06:44] Strongly threatening Qg5.} Qe5 {[%emt 0:02:57] Weighted Error Value: White=0.11 (very precise) /Black=0.30} 1-0

[Event "5th Sharjah Masters 2022"]
[Site "Sharjah"]
[Date "2022.05.27"]
[Round "7.25"]
[White "Aditya Mittal"]
[Black "Yuffa, Daniil"]
[Result "0-1"]
[ECO "D15"]
[WhiteElo "2490"]
[BlackElo "2597"]
[Annotator "TA"]
[PlyCount "78"]
[EventDate "2022.05.21"]
[EventType "swiss"]
[EventCountry "UAE"]
[SourceTitle "playchess.com"]
[Source "ChessBase"]
[SourceQuality "1"]
[TimeControl "5400+30"]

{[%evp 11,78,32,27,29,25,19,46,5,13,10,10,20,23,-13,-10,-5,-4,-73,-70,-70,-72,-69,-62,-75,-25,-24,-37,-39,-25,-22,-35,-45,-55,-55,-54,-40,0,0,0,0,0,-1,-1,-27,-16,-19,0,-34,-34,-258,-241,-514,-514,-514,-514,-514,-514,-837,-514,-514,-514,-5900,-512,-29972,-5365,-2003,-1316,-955,-579]} 1. d4 {[%emt 0:00:04]} d5 {[%emt 0:00:35]} 2. c4 {[%emt 0:00:04]} c6 {[%emt 0:00:05]} 3. Nf3 {[%emt 0:00:03]} Nf6 {[%emt 0:00:11]} 4. Nc3 {[%emt 0:00:05]} a6 {[%emt 0:00:08]} 5. e3 {[%emt 0:00:05]} b5 {[%emt 0:00:15]} 6. b3 {[%emt 0:00:19]} Bg4 {[%emt 0:00:11]} 7. a4 {[%emt 0:00:31][%cal Ra4b5] is recently more successful than 7.Be2. D15: Slav Defence: 4 Nc3 a6 and gambit lines after 4 Nc3 dxc4.} bxc4 {[%emt 0:00:09]} 8. bxc4 {[%emt 0:00:04]} e6 {[%emt 0:00:23]} 9. Bd2 {[%emt 0:02:59] [#] White is slightly better.} Bxf3 $146 {[%emt 0:00:35]} ({Predecessor:} 9... Nbd7 10. h3 Bh5 11. c5 Be7 12. a5 O-O 13. Na4 Qc7 14. Nb6 Ra7 15. Be2 e5 {1-0 (35) Bluebaum,M (2651)-Schneider,I (2486) Playchess.com INT 2020}) 10. gxf3 {[%emt 0:11:21]} Bb4 {[%emt 0:00:41]} 11. c5 {[%emt 0:04:03]} a5 {[%emt 0:01:50][%cal Oe6e5]} 12. Na2 {[%emt 0:12:43]} Bxd2+ {[%emt 0:00:44]} 13. Qxd2 {[%emt 0:00:02]} Nbd7 {[%emt 0:04:10]} 14. Rg1 {[%emt 0:10:09]} (14. Bh3 $11 {keeps the balance.}) 14... O-O $17 {[%emt 0:00:37]} 15. f4 {[%emt 0:07:29]} Ne4 {[%emt 0:02:29]} 16. Qc2 {[%emt 0:00:56]} Qf6 {[%emt 0:12:25]} 17. Nc3 {[%emt 0:09:25] [#]} Ndxc5 {[%emt 0:17:33]} 18. Nxe4 $1 $11 {[%emt 0:01:01]} Nxe4 {[%emt 0:00:07]} 19. Bd3 {[%emt 0:00:09]} Rab8 {[%emt 0:01:52][%cal Ba8b8,Bb8b2,Bb2d2][%mdl 32]} 20. Bxe4 {[%emt 0:02:22]} dxe4 {[%emt 0:00:20]} 21. Rg5 {[%emt 0:06:24]} Qh6 {[%emt 0:00:19]} 22. Qxe4 {[%emt 0:04:39]} Qxh2 {[%emt 0:05:27] White must now prevent ...Rb2.} 23. Kf1 $1 {[%emt 0:00:53]} g6 {[%emt 0:05:36]} 24. Rxa5 {[%emt 0:02:11]} Rb2 {[%emt 0:01:04][%csl Gb2][%cal Rh2f2]} 25. Qg2 {[%emt 0:00:20]} Qh4 $40 {[%emt 0:00:30][%mdl 128] Black mounts an attack.} 26. Rc5 {[%emt 0:10:20]} Rfb8 {[%emt 0:00:06][%cal Bf8b8,Bb8b2,Bb2a2][%mdl 32]} 27. a5 {[%emt 0:01:03]} Rd2 {[%emt 0:01:12]} 28. Kg1 $1 {[%emt 0:00:15]} ({But not} 28. a6 $2 Rbb2 29. Rg5 Rxf2+ 30. Kg1 Rxg2+ $19) 28... Rbb2 {[%emt 0:02:57][%cal Rd2f2]} 29. Rf1 {[%emt 0:00:50]} Ra2 {[%emt 0:00:45]} 30. Qg5 $2 {[%emt 0:01:42] Now White is beyond hope.} (30. Qf3 $15) 30... Qh3 $19 {[%emt 0:03:36][%cal Od2f2]} 31. Qg2 {[%emt 0:01:00] [#]} (31. f5 {was the only chance.} exf5 32. Qf4 (32. Qd8+ {gets mated.} Kg7)) 31... Qxe3 $3 {[%emt 0:00:21][%mdl 512]} 32. Rxc6 {[%emt 0:12:59] aiming for Rc8+.} Qxf4 {[%emt 0:00:13]} 33. Rc5 {[%emt 0:00:00]} Qxd4 {[%emt 0:01:07]} 34. Rb5 {[%emt 0:00:00]} (34. Rg5 $142) 34... Kg7 {[%emt 0:00:28] Strongly threatening ...Ra1.} 35. Qg3 {[%emt 0:00:00]} Rd3 {[%emt 0:00:44]} 36. Qg5 {[%emt 0:00:00]} (36. Qe5+ $142 Qxe5 37. Rxe5) 36... h6 {[%emt 0:00:29]} (36... Re2 $142 {( -> ...h6)} 37. Rb8 Re4) 37. Qg2 {[%emt 0:00:00] [#]} (37. Qe5+ $19 Qxe5 38. Rxe5) 37... Rda3 {[%emt 0:00:46]} (37... Rxf2 $142 $3 {[%mdl 512]} 38. Rxf2 Rd1+ 39. Qf1 Rxf1+ 40. Kxf1 Qc4+ 41. Kg1 Qxb5 42. Rf1 Qxa5 43. Kh2 Qe5+ 44. Kh1 h5 45. Kg2 Qe4+ 46. Kh3 Qg4+ 47. Kh2 Qe2+ 48. Kg1 h4 49. Rf2 Qe1+ 50. Rf1 Qe3+ 51. Rf2 h3 52. Kf1 Qg3 53. Ke2 h2 54. Rxh2 Qxh2+ 55. Kd3 Qd6+ 56. Ke3 Qd5 57. Kf2 Qd2+ 58. Kf3 g5 59. Ke4 Kf6 60. Kf3 Kf5 61. Kg3 g4 62. Kh4 Qh2#) 38. Rfb1 {[%emt 0:00:00]} Rxa5 {[%emt 0:00:45]} 39. R5b4 {[%emt 0:00:00]} Qf6 {[%emt 0:00:30] Weighted Error Value: White=0.79/Black=0.47} 0-1

[Event "5th Sharjah Masters 2022"]
[Site "Sharjah"]
[Date "2022.05.27"]
[Round "7.26"]
[White "Badelka, Olga"]
[Black "Adly, Ahmed"]
[Result "0-1"]
[ECO "E48"]
[WhiteElo "2453"]
[BlackElo "2596"]
[Annotator "TA"]
[PlyCount "82"]
[EventDate "2022.05.21"]
[EventType "swiss"]
[EventCountry "UAE"]
[SourceTitle "playchess.com"]
[Source "ChessBase"]
[SourceQuality "1"]
[TimeControl "5400+30"]

{[%evp 17,82,48,58,15,15,13,20,0,0,0,0,0,0,0,0,0,0,-16,-4,-6,-16,-29,-24,-25,0,-45,-45,-45,-45,-52,-43,-101,-94,-97,-97,-99,-95,-153,-138,-154,-151,-213,-212,-190,-141,-226,-212,-237,-237,-336,-343,-429,-422,-374,-336,-634,-633,-558,-501,-1841,-1418,-1360,-1332,-1099,-1078,-1060,-902]} 1. d4 {[%emt 0:00:04]} Nf6 {[%emt 0:00:05]} 2. c4 {[%emt 0:00:05]} e6 {[%emt 0:00:24]} 3. Nc3 {[%emt 0:00:06]} Bb4 {[%emt 0:00:11]} 4. e3 {[%emt 0:00:06]} O-O {[%emt 0:00:05]} 5. Bd3 {[%emt 0:00:08]} d5 {[%emt 0:01:32]} 6. cxd5 {[%emt 0:00:11]} exd5 {[%emt 0:00:27]} 7. Nge2 {[%emt 0:00:12]} c5 {[%emt 0:00:48]} 8. a3 {[%emt 0:05:46]} cxd4 {[%emt 0:00:10]} 9. axb4 {[%emt 0:01:21]} dxc3 {[%emt 0:00:05]} 10. bxc3 {[%emt 0:00:09] E48: Nimzo-Indian: Rubinstein: 5 Bd3 d5 including 6 Ne2, but excluding 6 a3.} Nc6 {[%emt 0:00:44][%cal Bb8c6,Bc6e5,Be5c4][%mdl 32]} 11. O-O {[%emt 0:01:00]} Ne5 {[%emt 0:00:12]} 12. Bc2 {[%emt 0:03:02][%cal Oe3e4] The position is equal.} Qc7 {[%emt 0:00:18]} 13. f3 {[%emt 0:05:33]} Bd7 {[%emt 0:01:32]} 14. Qd4 {[%emt 0:09:32] [#]} Rfc8 $146 {[%emt 0:15:43]} ({Predecessor:} 14... Bb5 15. Rf2 Bxe2 16. Rxe2 a6 17. Bb3 Rad8 18. Bd2 Nc6 19. Qd3 Ne5 20. Qf5 Nc4 {½-½ (41) Gurevich,D (2545)-Unzicker,W (2455) Beersheba 1984}) 15. Bd2 {[%emt 0:18:01]} (15. Rxa7 Nc6 16. Rxa8 Nxd4 17. Rxc8+ Qxc8 $17) 15... Bb5 {[%emt 0:07:36]} 16. Rfe1 {[%emt 0:00:42]} Nc4 {[%emt 0:07:52]} 17. Bf5 {[%emt 0:00:36]} Re8 {[%emt 0:01:14]} 18. Bc1 {[%emt 0:01:42]} a6 {[%emt 0:05:22]} 19. Qf4 {[%emt 0:13:26]} Qxf4 {[%emt 0:04:14]} 20. Nxf4 {[%emt 0:00:06]} Nd6 {[%emt 0:00:09]} 21. Bh3 {[%emt 0:08:41]} g5 {[%emt 0:02:46]} 22. Ne2 {[%emt 0:00:05]} h5 {[%emt 0:00:04][%cal Bh7h5,Bh5g4][%mdl 32]} 23. g3 $1 {[%emt 0:00:11]} g4 $36 {[%emt 0:00:03][%mdl 2048] [#] ...Bxe2 is the strong threat. Black has good play.} 24. fxg4 {[%emt 0:00:07] Black continues to play with concentration.} (24. Bg2 $15) 24... hxg4 {[%emt 0:00:06]} 25. Bg2 {[%emt 0:00:17]} Bxe2 {[%emt 0:00:24]} 26. Rxe2 {[%emt 0:00:05]} Nfe4 {[%emt 0:00:03]} 27. Bb2 {[%emt 0:08:05]} ({White should play} 27. Bxe4 Nxe4 28. Bb2) 27... Nc4 $17 {[%emt 0:00:19] Pair of Knights!} 28. Rd1 {[%emt 0:04:13] [#]} Rad8 {[%emt 0:00:27] Black is much more active.} 29. Rd4 {[%emt 0:01:42]} (29. Rf1 $17) 29... f5 $19 {[%emt 0:01:02]} 30. Bc1 {[%emt 0:10:17]} b5 {[%emt 0:01:35]} ({Weaker is} 30... Nxc3 31. Rf2 $17) (30... Kf7 $19 31. Ra2 Rh8) 31. Re1 {[%emt 0:02:24]} (31. h3 $17) 31... Kf7 {[%emt 0:01:38]} ({But not} 31... Nxc3 $2 32. Bf1) 32. Bxe4 {[%emt 0:03:51]} fxe4 {[%emt 0:00:57]} ({And not} 32... dxe4 33. Red1 Rc8 34. Rd5) 33. Rf1+ {[%emt 0:01:01]} (33. Re2 {was worth a try.}) 33... Ke6 {[%emt 0:00:03]} 34. Rf4 {[%emt 0:00:54]} Ne5 {[%emt 0:00:08]} 35. Rd1 {[%emt 0:00:49]} Rh8 {[%emt 0:00:06] White must now prevent ...Nf3+.} 36. Kg2 {[%emt 0:00:37]} (36. Rf2) 36... Rh3 {[%emt 0:00:58] aiming for ...Rdh8. Black is clearly winning.} 37. c4 {[%emt 0:02:49]} bxc4 {[%emt 0:04:35]} 38. Rxe4 {[%emt 0:00:09]} (38. Bb2 $142 Nf3 39. Rh1) 38... dxe4 {[%emt 0:00:42]} 39. Rxd8 {[%emt 0:00:05]} Nf3 {[%emt 0:00:04]} 40. b5 {[%emt 0:01:38]} Rxh2+ {[%emt 0:00:20]} 41. Kf1 {[%emt 0:00:04]} Rh1+ {[%emt 0:00:49] Weighted Error Value: White=0.54/Black=0.05 (flawless)} 0-1

[Event "5th Sharjah Masters 2022"]
[Site "Sharjah"]
[Date "2022.05.27"]
[Round "7.27"]
[White "Mastrovasilis, Dimitrios"]
[Black "Gharibyan, Mamikon"]
[Result "1-0"]
[ECO "C89"]
[WhiteElo "2613"]
[BlackElo "2487"]
[Annotator "TA"]
[PlyCount "93"]
[EventDate "2022.05.21"]
[EventType "swiss"]
[EventCountry "UAE"]
[SourceTitle "playchess.com"]
[Source "ChessBase"]
[SourceQuality "1"]
[TimeControl "5400+30"]

{[%evp 17,93,0,0,0,0,0,4,0,0,0,0,0,0,5,4,0,0,-15,-9,-45,-32,-45,-18,-20,-10,-58,-49,-58,-50,-44,-23,-63,-66,-60,-57,-99,-102,-102,-17,-97,-98,-86,-10,-109,28,12,34,25,28,56,227,236,226,233,341,275,298,298,301,303,281,151,450,357,816,816,808,808,801,795,795,795,787,760,745,745,858,795]} 1. e4 {[%emt 0:00:05]} e5 {[%emt 0:00:05]} 2. Nf3 {[%emt 0:00:17]} Nc6 {[%emt 0:00:12]} 3. Bb5 {[%emt 0:00:13]} a6 {[%emt 0:00:08]} 4. Ba4 {[%emt 0:00:06]} Nf6 {[%emt 0:00:05]} 5. O-O {[%emt 0:00:12]} Be7 {[%emt 0:00:06]} 6. Re1 {[%emt 0:00:19]} b5 {[%emt 0:00:10]} 7. Bb3 {[%emt 0:00:03]} O-O {[%emt 0:00:08]} 8. c3 {[%emt 0:00:17]} d5 {[%emt 0:00:47]} 9. d4 {[%emt 0:00:16]} exd4 {[%emt 0:05:15]} 10. e5 {[%emt 0:00:29] C89: Closed Ruy Lopez: Marshall Attack.} Ne4 {[%emt 0:00:23]} 11. cxd4 {[%emt 0:00:33]} Bf5 {[%emt 0:06:10] 11...Bf5 is better than 11...Bg4.} 12. Nc3 {[%emt 0:00:25] The position is equal.} Nxc3 {[%emt 0:01:07]} 13. bxc3 {[%emt 0:00:08]} Na5 {[%emt 0:03:11][%cal Bc6a5,Ba5c4,Bc4a3,Ba3b5,Bb5c3,Bc3a2][%mdl 32] 13...Qd7 is not played anymore.} 14. Bc2 {[%emt 0:01:58]} Bxc2 {[%emt 0:04:45]} 15. Qxc2 {[%emt 0:00:31]} Nc4 {[%emt 0:00:26]} 16. Bf4 $5 {[%emt 0:20:15][%mdl 4] Leaves trodden paths.} a5 {[%emt 0:06:28] [#]} 17. Nd2 $146 {[%emt 0:12:01]} ({Predecessor:} 17. Rad1 Ra6 18. g3 Qd7 19. Kg2 Rfa8 20. Re2 Rc6 21. Qb1 Rg6 22. h4 Raa6 23. Ng5 {1-0 (35) Azarov,S (2604)-Shuvalova,P (2476) Cheliabinsk 2021}) 17... Qd7 {[%emt 0:13:34]} 18. Rad1 {[%emt 0:09:13]} Na3 {[%emt 0:08:46]} 19. Qd3 {[%emt 0:05:19]} Qg4 {[%emt 0:00:54]} 20. g3 {[%emt 0:03:24]} Qg6 {[%emt 0:01:49]} 21. Qf3 {[%emt 0:04:57]} (21. Qxg6 $11 {feels stronger.} hxg6 22. Rc1) 21... b4 $15 {[%emt 0:01:45]} 22. Rc1 {[%emt 0:09:38]} Nb5 {[%emt 0:02:01]} (22... c6 $5 {[%cal Ra3b5]} 23. Red1 Nb5 $11) 23. Qxd5 {[%emt 0:00:48]} Nxc3 {[%emt 0:13:25]} 24. Qc4 {[%emt 0:04:49]} Qe6 {[%emt 0:03:30]} 25. Qxe6 {[%emt 0:04:20]} fxe6 {[%emt 0:00:04]} 26. Ne4 {[%emt 0:00:15]} Nxa2 {[%emt 0:14:40]} 27. Rxc7 {[%emt 0:01:04]} Bd8 {[%emt 0:00:58]} (27... Rf7 $1 $17 {Strongly threatening ...a4.} 28. Rc6 a4 29. Rxe6 b3) 28. Rb7 {[%emt 0:05:48]} (28. Rc4 $1 $11 {remains equal.}) 28... Rf7 {[%emt 0:05:05]} 29. Rb5 {[%emt 0:00:34]} Rd7 {[%emt 0:04:46]} (29... a4 $1 $17 {Hoping for ...b3.} 30. Nc5 b3) 30. Be3 {[%emt 0:02:30]} (30. Ra1 $1 $11 {keeps the balance.} Nc3 31. Nxc3 bxc3 32. Be3) 30... Rc7 {[%emt 0:03:18]} (30... Nc3 $6 31. Nxc3 bxc3 32. Ra1 $11) (30... a4 $1 $17 {...b3 is the strong threat.} 31. Nc5 Re7) 31. Ra1 $1 $36 {[%emt 0:01:08][%mdl 2048] White has the initiative.} Rc2 {[%emt 0:00:16]} 32. Nc5 {[%emt 0:08:27]} Be7 {[%emt 0:01:28]} 33. Nxe6 {[%emt 0:00:47] Threatens to win with Rb7.} Nc3 $2 {[%emt 0:00:41]} (33... Kf7 $14 34. Nf4 Nc3) 34. Rb7 $18 {[%emt 0:02:28]} ({Don't go for} 34. Raxa5 $2 Rxa5 35. Rxa5 b3 $19) 34... Nd5 {[%emt 0:00:30] [#]} 35. Nf4 $1 {[%emt 0:00:02]} Nxf4 {[%emt 0:00:30]} (35... Rc7 {was called for.}) 36. gxf4 {[%emt 0:00:14]} ({Inferior is} 36. Rxe7 Nd5 37. Rb7 a4 $15) ({Don't take} 36. Bxf4 $6 g5 $16) 36... Bf8 {[%emt 0:00:32]} 37. d5 {[%emt 0:00:40]} a4 {[%emt 0:00:13]} 38. d6 {[%emt 0:00:36]} b3 {[%emt 0:00:40] [#]} 39. d7 {[%emt 0:01:52]} (39. Kg2 $1 $18) 39... Be7 $2 {[%emt 0:00:38] This move loses the game for Black.} (39... b2 $16 40. Rxa4 Rd8) 40. Rxb3 {[%emt 0:01:24]} axb3 $2 {[%emt 0:00:03]} (40... Kf7) 41. Rxa8+ {[%emt 0:00:06][%mdl 4096] Endgame KRB-KRB. White is clearly winning.} Kf7 {[%emt 0:00:03]} 42. d8=Q {[%emt 0:00:32]} Bxd8 {[%emt 0:00:20]} 43. Rxd8 {[%emt 0:00:02]} b2 {[%emt 0:01:03]} 44. Rd1 {[%emt 0:00:07]} Ke6 {[%emt 0:00:51]} 45. Kg2 {[%emt 0:00:18]} Kf5 {[%emt 0:00:14]} 46. Kf3 {[%emt 0:01:26]} h6 {[%emt 0:00:54]} 47. Rb1 {[%emt 0:01:35] Weighted Error Value: White=0.17 (very precise) /Black=0.35} 1-0